fUST/lending_fUST_20250929
["ID","MTS","AMOUNT","RATE_DAILY","PERIOD"]
[388401791,1759156247546,-503.12023794,0.00024873,2]
[388401792,1759156247709,-500.0,0.00024873,2]
[388401793,1759156247718,-451.61334099,0.00024873,2]
[388401794,1759156247728,-500.0,0.00024873,2]
[388401795,1759156247737,-500.0,0.00024873,2]
[388401796,1759156247746,-419.37747581,0.00024873,2]
[388401797,1759156247756,-500.0,0.00024873,2]
[388401798,1759156247765,-500.0,0.00024873,2]
[388401799,1759156247775,-500.0,0.00024873,2]
[388401800,1759156247784,-431.25894735,0.00024873,2]
[388401801,1759156247794,-500.0,0.00024873,2]
[388401802,1759156247803,-500.0,0.00024873,2]
[388401803,1759156247812,-500.0,0.00024873,2]
[388401804,1759156247822,-500.0,0.00024873,2]
[388401805,1759156247831,-500.0,0.00024873,2]
[388401806,1759156247841,-500.0,0.00024873,2]
[388401807,1759156247851,-500.0,0.00024873,2]
[388401808,1759156247862,-175.00939999,0.00024873,2]
[388401809,1759156247873,-500.0,0.00024873,2]
[388401810,1759156247882,-500.0,0.00024873,2]
[388401811,1759156247892,-509.3829313,0.00024873,2]
[388401812,1759156247902,-500.0,0.00024873,2]
[388401813,1759156247913,-500.0,0.00024873,2]
[388401814,1759156247926,-163.72715987,0.00024873,2]
[388401815,1759156247935,-412.82600998,0.00024873,2]
[388401816,1759156247946,-509.86893301,0.00024873,2]
[388401817,1759156247956,-500.0,0.00024873,2]
[388401818,1759156247966,-500.0,0.00024873,2]
[388401819,1759156247976,-500.0,0.00024873,2]
[388401820,1759156247985,-500.0,0.00024873,2]
[388401821,1759156247994,-500.0,0.00024873,2]
[388401822,1759156248004,-500.0,0.00024873,2]
[388401823,1759156248014,-516.0459655,0.00024873,2]
[388401824,1759156248024,-500.0,0.00024873,2]
[388401825,1759156248033,-150.0,0.00024873,2]
[388401826,1759156248043,-177.00118484,0.00024875,2]
[388401827,1759156248053,-67569.25894116,0.00024898,2]
[388401828,1759156248063,-151.0,0.00024898,7]
[388401829,1759156248073,-151.0,0.00024898,7]
[388401830,1759156248082,-153.871709,0.00024898,7]
[388401831,1759156248091,-158.762164,0.00024898,7]
[388401832,1759156248100,-151.0,0.00024898,7]
[388401833,1759156248109,-800.548098,0.00024898,7]
[388401834,1759156248120,-166.268065,0.00024898,7]
[388401835,1759156248131,-800.548098,0.00024898,7]
[388401836,1759156248140,-166.268065,0.00024898,7]
[388401837,1759156248151,-800.548098,0.00024898,7]
[388401838,1759156248161,-800.548098,0.00024898,7]
[388401839,1759156248171,-166.268065,0.00024898,7]
[388401840,1759156248180,-166.268065,0.00024898,7]
[388401841,1759156248190,-151.576217,0.00024898,7]
[388401842,1759156248201,-151.0,0.00024898,7]
[388401843,1759156248211,-3108.416275,0.00024898,7]
[388401844,1759156248222,-3108.416275,0.00024898,7]
[388401845,1759156248233,-151.0,0.00024898,7]
[388401846,1759156248243,-3108.416275,0.00024898,7]
[388401847,1759156248252,-151.0,0.00024898,7]
[388401848,1759156248261,-3108.416275,0.00024898,7]
[388401849,1759156248271,-151.0,0.00024898,7]
[388401850,1759156248280,-151.0,0.00024898,7]
[388401851,1759156248290,-292.120303,0.00024898,7]
[388401852,1759156248300,-292.120303,0.00024898,7]
[388401853,1759156248310,-161.24248463,0.00024899,2]
[388401854,1759156248320,-151.0,0.000249,7]
[388401855,1759156248329,-151.0,0.000249,7]
[388401856,1759156248339,-285.867645,0.000249,7]
[388401857,1759156248349,-285.867645,0.000249,7]
[388401858,1759156248358,-285.867645,0.000249,7]
[388401859,1759156248368,-285.867645,0.000249,7]
[388401860,1759156248377,-151.0,0.000249,7]
[388401861,1759156248386,-296.197878,0.000249,7]
[388401862,1759156248398,-151.0,0.000249,7]
[388401863,1759156248407,-296.197878,0.000249,7]
[388401864,1759156248417,-296.197878,0.000249,7]
[388401865,1759156248426,-298.269547,0.000249,7]
[388401866,1759156248435,-296.197878,0.000249,7]
[388401867,1759156248446,-542.596106,0.000249,7]
[388401868,1759156248456,-542.596106,0.000249,7]
[388401869,1759156248465,-218.584003,0.000249,7]
[388401870,1759156248474,-542.596106,0.000249,7]
[388401871,1759156248484,-542.596106,0.000249,7]
[388401872,1759156248493,-151.0,0.000249,7]
[388401873,1759156248502,-264.419603,0.000249,7]
[388401874,1759156248512,-151.0,0.000249,7]
[388401875,1759156248523,-151.0,0.000249,7]
[388401876,1759156248534,-151.0,0.000249,7]
[388401877,1759156248543,-151.0,0.000249,7]
[388401878,1759156248554,-151.0,0.000249,7]
[388401879,1759156248570,-151.0,0.000249,7]
[388401880,1759156248593,-151.0,0.000249,7]
[388401881,1759156248605,-151.0,0.000249,7]
[388401882,1759156248617,-151.0,0.000249,7]
[388401883,1759156248627,-586.199941,0.000249,7]
[388401884,1759156248636,-586.199941,0.000249,7]
[388401885,1759156248646,-586.199941,0.000249,7]
[388401886,1759156248657,-586.199941,0.000249,7]
[388401887,1759156248667,-151.0,0.000249,7]
[388401888,1759156248677,-151.0,0.000249,7]
[388401889,1759156248686,-151.0,0.000249,7]
[388401890,1759156248696,-151.0,0.000249,7]
[388401891,1759156248706,-151.0,0.000249,7]
[388401892,1759156248715,-164.455933,0.000249,7]
[388401893,1759156248725,-164.455933,0.000249,7]
[388401894,1759156248734,-164.455933,0.000249,7]
[388401895,1759156248743,-159.398646,0.000249,7]
[388401896,1759156248753,-164.455933,0.000249,7]
[388401897,1759156248763,-151.0,0.000249,7]
[388401898,1759156248773,-163.963109,0.000249,7]
[388401899,1759156248782,-177.530435,0.000249,7]
[388401900,1759156248791,-4717.390683,0.000249,7]
[388401901,1759156248802,-4717.390683,0.000249,7]
[388401902,1759156248813,-151.0,0.000249,7]
[388401903,1759156248824,-4717.390683,0.000249,7]
[388401904,1759156248834,-4717.390683,0.000249,7]
[388401905,1759156248843,-151.0,0.000249,7]
[388401906,1759156248852,-155.0371,0.000249,7]
[388401907,1759156248862,-151.0,0.000249,7]
[388401908,1759156248873,-151.0,0.000249,7]
[388401909,1759156248882,-151.0,0.000249,7]
[388401910,1759156248892,-395616.292034,0.000249,2]
[388401911,1759156248902,-151.0,0.000249,7]
[388401912,1759156248911,-151.0,0.000249,7]
[388401913,1759156248920,-151.0,0.000249,7]
[388401914,1759156248931,-151.0,0.000249,7]
[388401915,1759156248940,-236.92402,0.000249,7]
[388401916,1759156248950,-236.92402,0.000249,7]
[388401917,1759156248961,-151.0,0.000249,7]
[388401918,1759156248970,-151.0,0.000249,7]
[388401919,1759156248980,-236.92402,0.000249,7]
[388401920,1759156248990,-151.0,0.000249,7]
[388401921,1759156248999,-151.0,0.000249,7]
[388401922,1759156249008,-417.15472785,0.000249,7]
[388401923,1759156249019,-236.92402,0.000249,7]
[388401924,1759156249029,-151.0,0.000249,7]
[388401925,1759156249040,-962.04491,0.000249,7]
[388401926,1759156249049,-962.04491,0.000249,7]
[388401927,1759156249059,-962.04491,0.000249,7]
[388401928,1759156249068,-962.04491,0.000249,7]
[388401929,1759156249079,-151.0,0.000249,7]
[388401930,1759156249091,-151.0,0.000249,7]
[388401931,1759156249109,-151.0,0.000249,7]
[388401932,1759156249121,-151.0,0.000249,7]
[388401933,1759156249130,-151.0,0.000249,7]
[388401934,1759156249140,-157.967243,0.000249,7]
[388401935,1759156249150,-151.0,0.000249,7]
[388401936,1759156249159,-151.0,0.000249,7]
[388401937,1759156249169,-151.0,0.000249,7]
[388401938,1759156249179,-151.0,0.000249,7]
[388401939,1759156249187,-151.0,0.000249,7]
[388401940,1759156249197,-417.15472785,0.000249,7]
[388401941,1759156249207,-233.87608454,0.000249,7]
[388401942,1759156249217,-800.548098,0.000249,7]
[388401943,1759156249227,-800.548098,0.000249,7]
[388401944,1759156249237,-166.268065,0.000249,7]
[388401945,1759156249247,-800.548098,0.000249,7]
[388401946,1759156249256,-166.268065,0.000249,7]
[388401947,1759156249266,-800.548098,0.000249,7]
[388401948,1759156249275,-800.548098,0.000249,7]
[388401949,1759156249285,-166.268065,0.000249,7]
[388401950,1759156249295,-800.548098,0.000249,7]
[388401951,1759156249304,-166.268065,0.000249,7]
[388401952,1759156249313,-800.548098,0.000249,7]
[388401953,1759156249321,-166.268065,0.000249,7]
[388401954,1759156249329,-800.548098,0.000249,7]
[388401955,1759156249337,-166.268065,0.000249,7]
[388401956,1759156249346,-166.268065,0.000249,7]
[388401957,1759156249355,-166.268065,0.000249,7]
[388401958,1759156249364,-151.0,0.000249,7]
[388401959,1759156249374,-151.0,0.000249,7]
[388401960,1759156249384,-3108.416275,0.000249,7]
[388401961,1759156249394,-3108.416275,0.000249,7]
[388401962,1759156249406,-3108.416275,0.000249,7]
[388401963,1759156249416,-151.0,0.000249,7]
[388401964,1759156249427,-3108.416275,0.000249,7]
[388401965,1759156249438,-151.0,0.000249,7]
[388401966,1759156249447,-3108.416275,0.000249,7]
[388401967,1759156249456,-3108.416275,0.000249,7]
[388401968,1759156249466,-159.812187,0.000249,7]
[388401969,1759156249478,-3108.416275,0.000249,7]
[388401970,1759156249487,-3108.416275,0.000249,7]
[388401971,1759156249497,-151.0,0.000249,7]
[388401972,1759156249506,-152.529253,0.000249,7]
[388401973,1759156249515,-292.120303,0.000249,7]
[388401974,1759156249526,-292.120303,0.000249,7]
[388401975,1759156249535,-168.0,0.0002491,2]
[388401976,1759156249544,-480.0,0.00024912,2]
[388401977,1759156249554,-656.55,0.00024912,2]
[388401978,1759156249563,-480.0,0.00024912,2]
[388401979,1759156249572,-480.0,0.00024912,2]
[388401980,1759156249581,-480.0,0.00024912,2]
[388401981,1759156249591,-160.0,0.0002497,2]
[388401982,1759156249600,-500.0,0.00024973,2]
[388401983,1759156249610,-500.0,0.00024973,2]
[388401984,1759156249621,-500.0,0.00024973,2]
[388401985,1759156249630,-500.0,0.00024973,2]
[388401986,1759156249639,-500.0,0.00024973,2]
[388401987,1759156249649,-500.0,0.00024973,2]
[388401988,1759156249659,-500.0,0.00024973,2]
[388401989,1759156249668,-501.45137746,0.00024973,2]
[388401990,1759156249677,-500.0,0.00024973,2]
[388401991,1759156249686,-500.0,0.00024973,2]
[388401992,1759156249695,-500.0,0.00024973,2]
[388401993,1759156249706,-500.0,0.00024973,2]
[388401994,1759156249715,-500.0,0.00024973,2]
[388401995,1759156249725,-500.0,0.00024973,2]
[388401996,1759156249734,-500.0,0.00024973,2]
[388401997,1759156249744,-500.0,0.00024973,2]
[388401998,1759156249753,-500.0,0.00024973,2]
[388401999,1759156249761,-500.0,0.00024973,2]
[388402000,1759156249769,-500.0,0.00024973,2]
[388402001,1759156249778,-500.0,0.00024973,2]
[388402002,1759156249786,-500.0,0.00024973,2]
[388402003,1759156249795,-500.0,0.00024973,2]
[388402004,1759156249804,-341.11063972,0.00024973,2]
[388402005,1759156249813,-501.78461422,0.00024973,2]
[388402006,1759156249822,-501.54788201,0.00024973,2]
[388402007,1759156249832,-159.65849985,0.00024973,2]
[388402008,1759156249840,-501.4504098,0.00024973,2]
[388402009,1759156249849,-400.0,0.00024973,2]
[388402010,1759156249857,-500.0,0.00024973,2]
[388402011,1759156249866,-500.0,0.00024973,2]
[388402012,1759156249875,-500.0,0.00024973,2]
[388402013,1759156249884,-500.0,0.00024975,5]
[388402014,1759156249891,-658.05,0.00024979,3]
[388402015,1759156249898,-286.19158217,0.00024979,2]
[388402016,1759156249904,-2532.4,0.00024987,2]
[388402017,1759156249913,-480.0,0.00024988,2]
[388402018,1759156249921,-480.0,0.00024988,2]
[388402019,1759156249930,-1333.18,0.00024988,2]
[388402020,1759156249938,-595.47,0.00024988,2]
[388402021,1759156249946,-480.0,0.00024988,2]
[388402022,1759156249953,-480.0,0.00024988,2]
[388402023,1759156249962,-480.0,0.00024988,2]
[388402024,1759156249968,-480.0,0.00024988,2]
[388402025,1759156249976,-615.48956978,0.00024988,2]
[388402026,1759156249984,-480.0,0.00024988,2]
[388402027,1759156249991,-480.0,0.00024988,2]
[388402028,1759156249998,-511.37387211,0.00024988,2]
[388402029,1759156250006,-480.0,0.00024988,2]
[388402030,1759156250015,-480.0,0.00024988,2]
[388402031,1759156250024,-480.0,0.00024988,2]
[388402032,1759156250031,-480.0,0.00024988,2]
[388402033,1759156250039,-480.0,0.00024988,2]
[388402034,1759156250046,-480.0,0.00024988,2]
[388402035,1759156250054,-480.0,0.00024988,2]
[388402036,1759156250063,-480.0,0.00024988,2]
[388402037,1759156250072,-546.85,0.00024988,2]
[388402038,1759156250082,-480.0,0.00024988,2]
[388402039,1759156250093,-480.0,0.00024988,2]
[388402040,1759156250103,-480.0,0.00024988,2]
[388402041,1759156250113,-621.42,0.00024988,2]
[388402042,1759156250123,-369.23758118,0.00024988,2]
[388402043,1759156250133,-480.0,0.00024988,2]
[388402044,1759156250143,-480.0,0.00024988,2]
[388402045,1759156250152,-480.0,0.00024988,2]
[388402046,1759156250162,-812.12,0.00024988,2]
[388402047,1759156250172,-480.0,0.00024988,2]
[388402048,1759156250182,-480.0,0.00024988,2]
[388402049,1759156250191,-846.41,0.00024988,2]
[388402050,1759156250201,-480.0,0.00024988,2]
[388402051,1759156250210,-614.51,0.00024988,2]
[388402052,1759156250220,-480.0,0.00024988,2]
[388402053,1759156250230,-480.0,0.00024988,2]
[388402054,1759156250240,-480.0,0.00024988,2]
[388402055,1759156250250,-480.0,0.00024988,2]
[388402056,1759156250259,-282.47934986,0.00024988,2]
[388402057,1759156250269,-480.0,0.00024988,2]
[388402058,1759156250279,-773.39,0.00024988,2]
[388402059,1759156250289,-688.35,0.00024988,2]
[388402060,1759156250298,-480.0,0.00024988,2]
[388402061,1759156250307,-480.0,0.00024988,2]
[388402062,1759156250316,-480.0,0.00024988,2]
[388402063,1759156250326,-839.51,0.00024988,2]
[388402064,1759156250336,-480.0,0.00024988,2]
[388402065,1759156250345,-480.0,0.00024988,2]
[388402066,1759156250354,-449.33448472,0.00024988,2]
[388402067,1759156250362,-480.0,0.00024988,2]
[388402068,1759156250373,-905.68,0.00024988,2]
[388402069,1759156250381,-480.0,0.00024988,2]
[388402070,1759156250390,-480.0,0.00024988,2]
[388402071,1759156250403,-480.0,0.00024988,2]
[388402072,1759156250412,-480.0,0.00024988,2]
[388402073,1759156250421,-480.0,0.00024988,2]
[388402074,1759156250430,-480.0,0.00024988,2]
[388402075,1759156250438,-313.4461521,0.00024988,2]
[388402076,1759156250446,-480.0,0.00024988,2]
[388402077,1759156250455,-480.0,0.00024988,2]
[388402078,1759156250464,-315.90706961,0.00024988,2]
[388402079,1759156250473,-822.31,0.00024988,2]
[388402080,1759156250483,-480.0,0.00024988,2]
[388402081,1759156250493,-480.0,0.00024988,2]
[388402082,1759156250502,-1961.96,0.00024988,2]
[388402083,1759156250512,-1961.96,0.00024988,2]
[388402084,1759156250521,-1961.96,0.00024988,2]
[388402085,1759156250531,-1961.96,0.00024988,2]
[388402086,1759156250540,-161.37893758,0.00024988,2]
[388402087,1759156251818,-3239.83,0.00023989,2]
[388402088,1759156251827,-500.0,0.00024274,2]
[388402089,1759156251837,-500.0,0.00024522,2]
[388402090,1759156251847,-500.0,0.00024522,2]
[388402091,1759156251856,-500.0,0.00024522,2]
[388402092,1759156251865,-151.0,0.00024536,2]
[388402093,1759156251876,-151.0,0.00024536,7]
[388402094,1759156251886,-749.34,0.00024536,2]
[388402095,1759156251896,-151.0,0.00024536,7]
[388402096,1759156251906,-500.0,0.00024548,2]
[388402097,1759156251915,-151.0,0.0002466,2]
[388402098,1759156251924,-151.0,0.0002466,7]
[388402099,1759156251933,-292.120303,0.0002466,7]
[388402100,1759156251942,-1041.77,0.0002481,2]
[388402101,1759156251951,-749.34,0.0002481,2]
[388402102,1759156251960,-500.0,0.00024822,2]
[388402103,1759156251969,-292.120303,0.00024898,7]
[388402104,1759156251978,-292.120303,0.000249,7]
[388402105,1759156251987,-292.120303,0.000249,7]
[388402106,1759156251996,-1800.58106242,0.00024988,2]
[388402107,1759156252005,-480.0,0.00024988,2]
[388402108,1759156252016,-480.0,0.00024988,2]
[388402109,1759156252025,-482.07444215,0.00024988,2]
[388402110,1759156252034,-773.02,0.00024988,2]
[388402111,1759156252044,-480.0,0.00024988,2]
[388402112,1759156252053,-705.49,0.00024988,2]
[388402113,1759156252063,-480.0,0.00024988,2]
[388402114,1759156252074,-480.0,0.00024988,2]
[388402115,1759156252083,-480.0,0.00024988,2]
[388402116,1759156252093,-830.06,0.00024988,2]
[388402117,1759156252102,-558.47,0.00024988,2]
[388402118,1759156252114,-480.0,0.00024988,2]
[388402119,1759156252125,-900.88,0.00024988,2]
[388402120,1759156252134,-151.0,0.00024988,7]
[388402121,1759156252145,-151.0,0.00024988,7]
[388402122,1759156252155,-151.0,0.00024988,7]
[388402123,1759156252167,-480.0,0.00024988,2]
[388402124,1759156252177,-151.0,0.00024988,7]
[388402125,1759156252187,-484.09174667,0.00024988,2]
[388402126,1759156252197,-241.103817,0.00024988,7]
[388402127,1759156252207,-480.0,0.00024988,2]
[388402128,1759156252217,-480.0,0.00024988,2]
[388402129,1759156252227,-480.0,0.00024988,2]
[388402130,1759156252237,-485.32,0.00024988,2]
[388402131,1759156252247,-543.73,0.00024988,2]
[388402132,1759156252257,-480.0,0.00024988,2]
[388402133,1759156252267,-480.0,0.00024988,2]
[388402134,1759156252278,-480.0,0.00024988,2]
[388402135,1759156252287,-481.09121957,0.00024988,2]
[388402136,1759156252297,-423.91916366,0.00024988,2]
[388402137,1759156252306,-480.0,0.00024988,2]
[388402138,1759156252314,-618.24,0.00024988,2]
[388402139,1759156252324,-480.14,0.00024988,2]
[388402140,1759156252334,-224.768267,0.00024988,7]
[388402141,1759156252343,-480.0,0.00024988,2]
[388402142,1759156252352,-224.768267,0.00024988,7]
[388402143,1759156252362,-480.0,0.00024988,2]
[388402144,1759156252372,-224.768267,0.00024988,7]
[388402145,1759156252382,-224.768267,0.00024988,7]
[388402146,1759156252392,-480.0,0.00024988,2]
[388402147,1759156252406,-480.0,0.00024988,2]
[388402148,1759156252416,-480.0,0.00024988,2]
[388402149,1759156252427,-481.66979238,0.00024988,2]
[388402150,1759156252437,-151.0,0.00024988,7]
[388402151,1759156252447,-151.0,0.00024988,7]
[388402152,1759156252456,-566.26745217,0.00024988,2]
[388402153,1759156252466,-480.0,0.00024988,2]
[388402154,1759156252476,-480.0,0.00024988,2]
[388402155,1759156252486,-480.0,0.00024988,2]
[388402156,1759156252495,-480.0,0.00024988,2]
[388402157,1759156252505,-480.0,0.00024988,2]
[388402158,1759156252516,-480.0,0.00024988,2]
[388402159,1759156252527,-500.0,0.00024988,2]
[388402160,1759156252537,-500.0,0.00024988,2]
[388402161,1759156252548,-151.0,0.00024988,7]
[388402162,1759156252558,-500.0,0.00024988,2]
[388402163,1759156252569,-507.09653027,0.00024988,2]
[388402164,1759156252579,-480.0,0.00024988,2]
[388402165,1759156252590,-450.83176503,0.00024988,2]
[388402166,1759156252609,-480.0,0.00024988,2]
[388402167,1759156252625,-480.0,0.00024988,2]
[388402168,1759156252635,-151.0,0.00024988,7]
[388402169,1759156252646,-480.0,0.00024988,2]
[388402170,1759156252655,-151.0,0.00024988,7]
[388402171,1759156252665,-151.0,0.00024988,7]
[388402172,1759156252675,-480.0,0.00024988,2]
[388402173,1759156252684,-480.0,0.00024988,2]
[388402174,1759156252694,-219.78802183,0.00024988,2]
[388402175,1759156252703,-151.0,0.00024988,7]
[388402176,1759156252713,-480.0,0.00024988,2]
[388402177,1759156252722,-151.0,0.00024988,7]
[388402178,1759156252732,-480.0,0.00024988,2]
[388402179,1759156252742,-151.0,0.00024988,7]
[388402180,1759156252752,-480.0,0.00024988,2]
[388402181,1759156252762,-151.0,0.00024988,7]
[388402182,1759156252772,-170.532038,0.00024988,7]
[388402183,1759156252782,-480.0,0.00024988,2]
[388402184,1759156252792,-482.769942,0.00024988,2]
[388402185,1759156252802,-151.0,0.00024988,7]
[388402186,1759156252813,-151.0,0.00024988,7]
[388402187,1759156252823,-151.0,0.00024988,7]
[388402188,1759156252834,-172.918451,0.00024988,7]
[388402189,1759156252845,-151.0,0.00024988,7]
[388402190,1759156252855,-691.64,0.00024988,2]
[388402191,1759156252865,-172.918451,0.00024988,7]
[388402192,1759156252875,-172.918451,0.00024988,7]
[388402193,1759156252886,-172.918451,0.00024988,7]
[388402194,1759156252896,-480.0,0.00024988,2]
[388402195,1759156252906,-480.0,0.00024988,2]
[388402196,1759156252915,-240.054208,0.00024988,7]
[388402197,1759156252924,-151.0,0.00024988,7]
[388402198,1759156252933,-240.054208,0.00024988,7]
[388402199,1759156252941,-240.054208,0.00024988,7]
[388402200,1759156252950,-694.289603,0.00024988,7]
[388402201,1759156252958,-694.289603,0.00024988,7]
[388402202,1759156252967,-575.99,0.00024988,2]
[388402203,1759156252975,-694.289603,0.00024988,7]
[388402204,1759156252984,-694.289603,0.00024988,7]
[388402205,1759156252992,-481.54375347,0.00024988,2]
[388402206,1759156253001,-151.0,0.00024988,7]
[388402207,1759156253010,-151.0,0.00024988,7]
[388402208,1759156253020,-151.0,0.00024988,7]
[388402209,1759156253030,-240.054208,0.00024988,7]
[388402210,1759156253041,-151.0,0.00024988,7]
[388402211,1759156253061,-151.0,0.00024988,7]
[388402212,1759156253073,-413.35317121,0.00024988,2]
[388402213,1759156253085,-480.0,0.00024988,2]
[388402214,1759156253095,-480.0,0.00024988,2]
[388402215,1759156253106,-750.45,0.00024988,2]
[388402216,1759156253116,-224.812948,0.00024988,7]
[388402217,1759156253130,-224.812948,0.00024988,7]
[388402218,1759156253141,-224.812948,0.00024988,7]
[388402219,1759156253151,-224.812948,0.00024988,7]
[388402220,1759156253161,-48.72096216,0.00024988,2]
[388402221,1759156253248,34667.9801322,0.00022995,2]
[388402225,1759156254444,-1796.93085002,0.00023958,2]
[388402226,1759156254460,-2630.97237993,0.00023958,2]
[388402227,1759156254765,-572.09677005,0.00023958,2]
[388402228,1759156254799,-480.0,0.00023988,2]
[388402229,1759156254833,-480.0,0.00023988,2]
[388402230,1759156254868,-480.0,0.00023988,2]
[388402231,1759156254905,-480.0,0.00023988,2]
[388402232,1759156254988,5000.0,0.00023401,2]
[388402233,1759156255502,15.8164599,0.00023988,2]
[388402234,1759156267515,-5000.0,0.00023748,2]
[388402235,1759156267811,-300.0,0.00023987,2]
[388402236,1759156267849,-464.1835401,0.00023988,2]
[388402237,1759156267892,-480.0,0.00023988,2]
[388402238,1759156268112,-2511.6429198,0.00023988,2]
[388402239,1759156268438,-2488.3570802,0.00023988,2]
[388402240,1759156268481,-862.0058396,0.00023988,2]
[388402241,1759156268661,-810.9270802,0.00023988,2]
[388402242,1759156270498,320.25423352,0.00023401,2]
[388402243,1759156277588,-5000.0,0.00023748,2]
[388402244,1759156277633,-0.01,0.00023988,2]
[388402245,1759156277901,-2488.3470802,0.00023988,2]
[388402246,1759156277934,-676.21,0.00023988,2]
[388402247,1759156277966,-544.07,0.00023988,2]
[388402248,1759156278000,-1122.45,0.00023988,2]
[388402249,1759156278127,-337.8558396,0.00023988,2]
[388402250,1759156287558,-4349.33214765,0.00023748,2]
[388402251,1759156287607,-1301.3457047,0.00023988,2]
[388402252,1759156287745,-10000.01,0.00023988,2]
[388402253,1759156287841,-10000.01,0.00023988,2]
[388402254,1759156297785,-5000.0,0.00023748,2]
[388402255,1759156300451,0.01,0.00023401,2]
[388402256,1759156300480,4999.99,0.00023401,2]
[388402267,1759156306968,500.0,0.00028767,120]
[388402268,1759156309951,500.0,8.219e-05,2]
[388402269,1759156310629,500.0,8.493e-05,2]
[388402270,1759156311627,500.0,8.767e-05,2]
[388402271,1759156312931,500.0,9.041e-05,2]
[388402272,1759156313609,500.0,9.315e-05,2]
[388402273,1759156314628,500.0,9.589e-05,2]
[388402275,1759156315626,500.0,9.863e-05,2]
[388402276,1759156316676,1500.02,0.00023748,2]
[388402277,1759156316703,3499.98,0.00023748,2]
[388402284,1759156324920,5000.0,0.00023748,2]
[388402285,1759156329370,417.15472785,0.00025,30]
[388402286,1759156340728,500.0,0.00010137,2]
[388402288,1759156341086,1000.03,0.00023748,2]
[388402289,1759156341140,3999.97,0.00023748,2]
[388402291,1759156349850,5000.0,0.00023748,2]
[388402292,1759156354062,6255.7956985,0.00025,30]
[388402293,1759156365445,1000.04,0.00023748,2]
[388402294,1759156365474,3999.96,0.00023748,2]
[388402295,1759156373291,206.8266531,0.00022988,2]
[388402296,1759156373589,5000.0,0.00023748,2]
[388402297,1759156389939,793.2233469,0.00023748,2]
[388402298,1759156389966,4206.7766531,0.00023748,2]
[388402300,1759156397990,5000.0,0.00023748,2]
[388402303,1759156400633,582.87,0.00010411,2]
[388402305,1759156401293,210.3633469,0.00022987,2]
[388402306,1759156401320,4454.3837818,0.00022987,2]
[388402307,1759156415112,5000.0,0.00023748,2]
[388402310,1759156423778,545.6262182,0.00023748,2]
[388402311,1759156423805,4454.3737818,0.00023748,2]
[388402312,1759156439922,5000.0,0.00023748,2]
[388402313,1759156448056,545.6362182,0.00023748,2]
[388402314,1759156448085,4454.3637818,0.00023748,2]
[388402316,1759156463759,5000.0,0.00023748,2]
[388402317,1759156471807,545.6462182,0.00023748,2]
[388402318,1759156471834,4454.3537818,0.00023748,2]
[388402319,1759156487434,5000.0,0.00023748,2]